bitfinex/quotes_ETHUSD_20250508
["timestamp","ask_amount","ask_price","bid_price","bid_amount"]
[1746744619201,8.40963283,2184.3,2183.3,5.35849034]
[1746744619396,4.57897763,2183.9,2183.4,7.57990584]
[1746744619831,4.57918033,2183.8,2183.4,3.0]
[1746744620039,4.57926573,2183.8,2183.4,3.0]
[1746744620221,4.57902713,2183.9,2183.4,7.5798566]
[1746744621118,4.57863205,2184.1,2183.4,7.5798566]
[1746744621119,0.55,2184.1,2183.4,4.29383593]
[1746744621313,4.57926713,2183.8,2183.3,0.77828625]
[1746744621639,4.57934602,2183.8,2183.3,0.77828625]
[1746744621803,4.57940494,2183.7,2183.3,0.77828625]
[1746744622442,4.57904332,2183.9,2183.4,7.57993304]
[1746744623116,4.57900581,2183.9,2183.4,5.87375623]
[1746744623505,4.57846458,2184.2,2183.7,4.57937322]
[1746744623699,4.57869867,2184.1,2183.6,4.57956856]
[1746744623947,4.57869867,2184.1,2183.4,8.87378622]
[1746744623948,4.57929576,2183.8,2183.4,3.0]
[1746744624244,5.12885437,2184.0,2183.5,4.579671]
[1746744624410,5.12885437,2184.0,2183.4,0.04579513]
[1746744624411,0.51288544,2184.0,2183.4,0.04579513]
[1746744624619,4.57898433,2183.9,2183.3,8.35847126]
[1746744625037,4.57951368,2183.7,2183.3,3.77828625]
[1746744625223,4.57925527,2183.8,2183.3,8.35847327]
[1746744625412,4.57938573,2183.7,2183.3,3.77828625]
[1746744626553,0.55,2183.6,2183.3,3.77828625]
[1746744626849,4.57985398,2183.5,2183.0,4.4476]
[1746744627008,4.57969034,2183.6,2183.1,4.58053774]
[1746744627204,4.57960275,2183.6,2183.2,4.58039393]
[1746744627447,0.55,2183.7,2183.2,4.5802515]
[1746744627610,4.57922598,2183.8,2183.4,4.57989641]
[1746744627814,4.57956156,2183.7,2183.3,0.8216]
[1746744628027,0.55,2183.5,2183.0,4.4476]
[1746744628230,4.58030797,2183.3,2183.0,0.8216]
[1746744628431,4.57947018,2183.7,2183.2,4.5802835]
[1746744628751,0.51288544,2184.0,2183.6,4.57949657]
[1746744628905,0.51288544,2184.0,2183.4,4.57991304]
[1746744628906,5.3468155,2184.5,2183.7,4.6250924]
[1746744629109,4.57843271,2184.2,2183.8,4.57915282]
[1746744629313,4.57816976,2184.3,2183.8,4.57897671]
[1746744629513,4.57801728,2184.4,2183.9,4.57886587]
[1746744629747,4.57804253,2184.4,2184.0,3.0]
[1746744630111,0.7706,2184.9,2184.2,3.0]
[1746744630317,4.57744416,2184.7,2184.2,4.57820235]
[1746744630517,0.7706,2184.9,2184.3,4.57797877]
[1746744630755,4.57816,2184.3,2184.1,0.8116]
[1746744630916,4.57785393,2184.5,2184.1,0.8116]
[1746744631248,4.57802726,2184.4,2184.1,0.8116]
[1746744631454,0.55,2184.7,2184.1,0.8116]
[1746744631748,4.57833531,2184.2,2184.1,0.8116]
[1746744632060,4.57825006,2184.3,2184.1,0.8116]
[1746744632240,0.10861958,2184.2,2184.1,0.8116]
[1746744632629,4.5779326,2184.4,2184.1,0.8116]
[1746744632938,4.57872118,2184.1,2183.8,4.4386]
[1746744633131,4.57891153,2184.0,2183.8,4.4386]
[1746744633329,4.68712378,2184.0,2183.8,4.4386]
[1746744633841,0.10821225,2184.0,2183.8,4.4386]
[1746744634038,0.10821225,2184.0,2183.8,9.82245003]
[1746744634218,4.57827968,2184.3,2183.8,9.82245003]
[1746744634419,0.10728495,2183.9,2183.8,12.01769003]
[1746744634620,4.57827968,2184.3,2183.9,7.57896165]
[1746744635152,4.57794376,2184.4,2183.9,3.04578488]
[1746744635455,4.57794376,2184.4,2184.0,4.578754]
[1746744635656,4.57782677,2184.5,2184.0,4.578754]
[1746744636227,4.57763911,2184.6,2184.1,4.57845303]
[1746744636228,4.57767994,2184.6,2184.1,4.57845303]
[1746744636430,4.57771679,2184.5,2184.1,4.62423621]
[1746744636633,4.57811067,2184.4,2183.9,7.57891974]
[1746744636832,4.57811067,2184.4,2183.9,14.08359466]
[1746744637038,4.57813546,2184.3,2183.9,9.50467492]
[1746744637228,4.57854295,2184.2,2183.8,4.4386]
[1746744637558,4.57848982,2184.2,2183.8,4.4386]
[1746744637726,4.57848982,2184.2,2183.9,3.0]
[1746744638068,0.55,2184.5,2183.9,3.0]
[1746744638069,4.57803228,2184.4,2183.9,7.62455618]
[1746744638624,4.57803228,2184.4,2184.0,4.57864034]
[1746744638867,9.15534962,2184.6,2184.1,4.62419557]
[1746744639164,4.57764472,2184.6,2184.1,4.62419557]
[1746744640142,4.57764472,2184.6,2184.2,3.63226308]
[1746744640533,4.57764472,2184.6,2184.3,0.7521]
[1746744640732,4.57728799,2184.7,2184.3,0.7521]
[1746744641042,4.57728799,2184.7,2184.3,5.330209]
[1746744641245,4.57715424,2184.8,2184.3,0.7521]
[1746744641445,4.57739983,2184.7,2184.3,0.7521]
[1746744641969,4.57684171,2185.0,2184.5,8.20988449]
[1746744642285,4.57728749,2184.7,2184.5,3.63226308]
[1746744642430,4.57768395,2184.6,2184.4,4.89309123]
[1746744642635,4.5776255,2184.6,2184.4,4.89309123]
[1746744643043,4.57675991,2185.0,2184.5,8.20976844]
[1746744643242,4.57675991,2185.0,2184.5,9.599862]
[1746744643533,3.90920904,2185.5,2184.5,9.599862]
[1746744643534,4.57456541,2186.0,2185.3,4.57593368]
[1746744643756,0.7888,2186.1,2185.6,3.63226308]
[1746744643941,4.57508429,2185.8,2185.6,3.63226308]
[1746744644637,5.36335654,2186.1,2185.6,3.63226308]
[1746744644844,4.57555659,2185.6,2185.4,3.585]
[1746744645279,4.5756382,2185.5,2185.3,10.81926308]
[1746744645431,4.5756382,2185.5,2185.3,10.81726308]
[1746744646265,4.5756382,2185.5,2185.1,0.7753]
[1746744646465,4.57644959,2185.1,2185.0,3.63226308]
[1746744646668,4.57632825,2185.2,2185.0,3.63226308]
[1746744646971,4.57564336,2185.5,2185.0,8.20883365]
[1746744647135,4.57582757,2185.4,2185.0,3.63226308]
[1746744647870,0.55,2185.8,2185.0,3.63226308]
[1746744648375,4.57707799,2184.8,2184.7,20.11926308]
[1746744648574,4.57707799,2184.8,2184.7,3.63226308]
[1746744648877,4.57707799,2184.8,2184.4,3.0]
[1746744648878,4.57770656,2184.5,2184.4,4.45736308]
[1746744649187,4.57761507,2184.6,2184.4,3.63226308]
[1746744649765,4.57738278,2184.7,2184.4,3.63226308]
[1746744649966,4.57752585,2184.6,2184.4,3.63226308]
[1746744650280,4.57770656,2184.5,2184.4,3.63226308]
[1746744650567,4.57770656,2184.5,2184.3,3.603]
[1746744650969,4.57770656,2184.5,2184.2,0.8251]
[1746744651391,4.57760566,2184.6,2184.2,7.9941]
[1746744651594,4.57723124,2184.8,2184.4,3.63226308]
[1746744652270,4.57723124,2184.8,2184.4,8.21016778]
[1746744652800,4.57723124,2184.8,2184.4,3.63226308]
[1746744652962,4.57729721,2184.7,2184.4,3.63226308]
[1746744653164,4.57720127,2184.8,2184.4,3.63226308]
[1746744653391,4.57731699,2184.7,2184.4,3.63226308]
[1746744653890,4.57751321,2184.6,2184.4,3.63226308]
[1746744654094,4.57747081,2184.7,2184.4,3.63226308]
[1746744654591,4.57722389,2184.8,2184.4,3.63226308]
[1746744654800,4.57696822,2184.9,2184.4,10.61987947]
[1746744654960,4.57710372,2184.8,2184.4,10.61987947]
[1746744655501,5.12681405,2185.0,2184.4,10.61987947]
[1746744655502,5.12681405,2185.0,2184.5,4.57753278]
[1746744655659,4.57689595,2184.9,2184.7,3.63226308]
[1746744656761,4.57675999,2185.0,2184.7,3.63226308]
[1746744656963,0.7704,2184.9,2184.3,3.0]
[1746744657192,4.57701595,2184.9,2184.5,3.63226308]
[1746744657395,4.57671594,2185.0,2184.5,3.63226308]
[1746744657562,4.57703116,2184.9,2184.5,3.63226308]
[1746744657762,4.57713562,2184.8,2184.5,3.63226308]
[1746744658062,4.57681228,2185.0,2184.7,0.7652]
[1746744658493,9.15323023,2185.1,2184.8,3.63226308]
[1746744658693,4.57657726,2185.1,2184.8,3.63226308]
[1746744659269,4.57634377,2185.2,2184.8,3.63226308]
[1746744659470,4.57611183,2185.3,2184.8,8.2092495]
[1746744659691,4.57589396,2185.4,2184.9,4.57668892]
[1746744659903,4.57589396,2185.4,2185.1,3.63226308]
[1746744660107,4.57624016,2185.2,2185.1,3.63226308]
[1746744660614,4.57573314,2185.5,2184.9,4.57685344]
[1746744660791,11.99007486,2185.7,2185.1,8.20861153]
[1746744661004,4.57591872,2185.4,2185.2,0.7992]
[1746744661167,4.57624016,2185.2,2185.1,3.63226308]
[1746744661596,4.57575878,2185.5,2185.1,3.63226308]
[1746744661876,4.57602692,2185.4,2185.1,3.63226308]
[1746744662201,3.04142239,2185.9,2185.1,5.02419691]
[1746744662402,4.57591423,2185.4,2185.1,5.02419691]
[1746744662581,3.04142239,2185.9,2185.1,9.64640039]
[1746744662582,4.57562537,2185.5,2185.1,9.64640039]
[1746744662903,4.57569435,2185.5,2185.1,5.06995596]
[1746744663302,4.57569435,2185.5,2185.1,9.64639042]
[1746744663497,4.57519854,2185.7,2185.3,4.57591359]
[1746744663700,4.57519854,2185.7,2185.2,8.97520574]
[1746744664020,4.57542057,2185.6,2185.2,8.97520574]
[1746744664317,4.57542057,2185.6,2185.2,4.39905904]
[1746744664495,4.57542057,2185.6,2185.3,1.39996019]
[1746744664695,4.57528251,2185.7,2185.3,1.39996019]
[1746744664891,4.57549556,2185.6,2185.3,1.39996019]
[1746744665093,4.57513739,2185.8,2185.4,3.63226308]
[1746744665322,0.7634,2186.0,2185.5,0.8326]
[1746744665614,4.57540263,2185.6,2185.5,0.8326]
[1746744665989,0.7634,2186.0,2185.5,0.8326]
[1746744666212,4.57530496,2185.7,2185.5,0.8326]
[1746744666379,4.57508144,2185.8,2185.5,1.41908233]
[1746744667216,3.04142239,2186.3,2185.7,3.63226308]
[1746744667433,4.57415143,2186.2,2186.0,3.63226308]
[1746744667716,0.8239,2186.5,2186.0,3.63226308]
[1746744667717,4.65982029,2186.1,2186.0,3.63226308]
[1746744668378,4.57458516,2186.0,2185.7,6.63226308]
[1746744668578,4.57445554,2186.1,2185.7,6.63226308]
[1746744668780,4.65983301,2186.1,2185.7,6.63226308]
[1746744668981,4.65983301,2186.1,2185.7,11.20737574]
[1746744669393,4.57456609,2186.0,2185.7,6.63226308]
[1746744669794,4.57445402,2186.1,2185.7,6.63226308]
[1746744669995,4.57466773,2186.0,2185.7,6.63226308]
[1746744670295,4.57455497,2186.1,2185.7,6.63226308]
[1746744670511,4.57448021,2186.1,2185.7,6.63226308]
[1746744670754,0.08546414,2186.1,2185.7,13.76969578]
[1746744670920,0.08546414,2186.1,2186.0,3.63226308]
[1746744671437,4.5742333,2186.2,2186.0,3.63226308]
[1746744671627,0.08546414,2186.1,2186.0,3.63226308]
[1746744671827,0.08546414,2186.1,2186.0,3.64629915]
[1746744672040,4.57361547,2186.5,2186.1,4.57434199]
[1746744672256,0.09154945,2186.4,2186.3,3.64629915]
[1746744672435,0.09154945,2186.4,2186.3,4.42159915]
[1746744672925,4.57362386,2186.5,2186.3,4.42159915]
[1746744673133,0.09185123,2186.4,2186.3,4.42159915]
[1746744673347,0.09185123,2186.4,2186.3,11.99553685]
[1746744673655,4.57272499,2186.9,2186.4,7.57361856]
[1746744673829,4.57310101,2186.7,2186.6,3.64629915]
[1746744674030,4.57351932,2186.5,2186.4,3.64629915]
[1746744674233,4.57414692,2186.2,2186.1,6.64629915]
[1746744674406,4.57337038,2186.6,2186.1,6.64629915]
[1746744674407,4.57405257,2186.3,2186.2,3.0]
[1746744674603,0.45740526,2186.3,2185.8,3.64629915]
[1746744674841,4.57428948,2186.2,2185.8,3.64629915]
[1746744675046,4.66582845,2186.1,2185.8,3.64629915]
[1746744675240,4.57458944,2186.0,2185.8,3.64629915]
[1746744675444,0.09087875,2185.9,2185.8,3.64629915]
[1746744675751,0.09087875,2185.9,2185.8,3.0]
[1746744676047,4.57458456,2186.0,2185.8,3.0]
[1746744676242,4.66565344,2185.9,2185.8,3.0]
[1746744676544,4.66565344,2185.9,2185.4,0.7739]
[1746744676721,4.57506816,2185.8,2185.4,7.8249]
[1746744676926,4.57506816,2185.8,2185.4,9.8974332]
[1746744677240,4.66566939,2185.7,2185.4,9.8974332]
[1746744677443,0.09047239,2185.7,2185.5,4.57559781]
[1746744677644,4.57498693,2185.8,2185.4,14.47314385]
[1746744677849,0.09047239,2185.7,2185.4,14.47314385]
[1746744678049,4.57498693,2185.8,2185.4,14.47314385]
[1746744678545,0.09047239,2185.7,2185.5,4.57557415]
[1746744678748,0.09047239,2185.7,2185.6,11.20827482]
[1746744678946,4.57385837,2186.4,2185.9,4.57465761]
[1746744679163,4.57385837,2186.4,2185.9,5.34545761]
[1746744679344,4.66565114,2186.3,2185.9,4.40367219]
[1746744679661,4.66573409,2186.3,2185.9,4.40367219]
[1746744680245,4.57416002,2186.2,2185.9,4.40367219]
[1746744680475,0.09060733,2186.1,2186.0,11.62444232]
[1746744680659,4.66496348,2186.1,2186.0,7.05]
[1746744680866,4.66496574,2186.1,2185.9,4.40367219]
[1746744681152,4.57456541,2186.0,2185.9,7.40367219]
[1746744681315,4.6650889,2186.1,2185.9,4.40367219]
[1746744681516,0.08834776,2186.0,2185.7,3.526]
[1746744681736,4.57485566,2185.9,2185.7,3.526]
[1746744681935,1.3742,2186.2,2185.6,3.63287219]
[1746744682141,4.5751933,2185.7,2185.4,0.8079]
[1746744682549,0.086786,2185.6,2185.5,4.57561198]
[1746744682771,0.086786,2185.6,2185.5,12.47885158]
[1746744682979,4.57460618,2186.0,2185.6,7.57535863]
[1746744683160,4.5751933,2185.7,2185.6,3.0]
[1746744683362,4.5751498,2185.8,2185.5,6.526]
[1746744683547,0.08698921,2185.7,2185.6,6.63287219]
[1746744683946,4.57507722,2185.8,2185.6,6.63287219]
[1746744684167,4.66281864,2185.7,2185.6,6.63287219]
[1746744684734,4.66281864,2185.7,2185.6,3.63287219]
[1746744684978,4.57540263,2185.6,2185.5,6.526]
[1746744685143,4.66293252,2185.7,2185.5,6.526]
[1746744685344,0.08606395,2185.6,2185.5,6.526]
[1746744685964,0.08606395,2185.6,2185.5,13.06559715]
[1746744686145,4.57466371,2186.0,2185.6,7.57539687]
[1746744686349,4.57466371,2186.0,2185.6,11.20826906]
[1746744686677,0.0864194,2185.9,2185.7,4.62081399]
[1746744686854,0.0864194,2185.9,2185.7,4.57506592]
[1746744687056,4.57443483,2186.1,2185.7,4.57506592]
[1746744687251,0.08662258,2186.0,2185.7,7.18717787]
[1746744687456,0.08662258,2186.0,2185.7,2.61207775]
[1746744687841,0.08662258,2186.0,2185.8,0.833]
[1746744688175,4.57383697,2186.4,2186.0,4.57454382]
[1746744688549,0.08815055,2186.3,2186.0,4.57454382]
[1746744688881,0.08815055,2186.3,2185.9,6.63287219]
[1746744689048,4.57424177,2186.2,2185.9,6.63287219]
[1746744689265,0.0877443,2186.1,2185.6,3.63287219]
[1746744689464,4.57511084,2185.8,2185.6,3.525]
[1746744689792,0.08693156,2185.7,2185.6,8.14615353]
[1746744689991,4.57490172,2185.9,2185.6,3.63287219]
[1746744690197,4.66244609,2185.8,2185.6,3.63287219]
[1746744691101,4.66237212,2185.8,2185.6,3.63287219]
[1746744691304,0.08736532,2185.8,2185.6,3.63287219]
[1746744691508,0.08736532,2185.8,2185.7,4.5751933]
[1746744691670,0.08736532,2185.8,2185.7,7.5751933]
[1746744692163,0.08736532,2185.8,2185.7,3.0]
[1746744692366,4.57479436,2185.9,2185.6,3.63287219]
[1746744692581,4.66241984,2185.8,2185.6,3.63287219]
[1746744692766,4.57540263,2185.6,2185.5,3.0]
[1746744693008,4.66236153,2185.6,2185.4,3.0]
[1746744693186,4.57628492,2185.2,2184.9,20.91767219]
[1746744693386,4.5757815,2185.5,2184.9,20.91767219]
[1746744693588,4.57583539,2185.4,2185.2,3.63287219]
[1746744693897,4.5757815,2185.5,2185.0,3.0]
[1746744693898,4.57611948,2185.3,2185.0,3.0]
[1746744694072,4.57611948,2185.3,2184.9,20.91767219]
[1746744694264,0.812,2185.6,2184.9,25.11896167]
[1746744694464,4.57632898,2185.2,2184.9,20.91767219]
[1746744694665,4.57613165,2185.3,2185.0,3.0]
[1746744694866,0.8244,2185.8,2185.0,7.62224474]
[1746744695175,4.5756505,2185.5,2185.0,7.62229202]
[1746744695679,4.57588255,2185.4,2185.0,7.62229202]
[1746744695878,4.57588255,2185.4,2185.0,7.07357054]
[1746744696280,4.57611437,2185.3,2185.0,3.04576169]
[1746744696591,4.57632581,2185.2,2185.0,3.0]
[1746744696779,4.57615666,2185.3,2185.0,3.0]
[1746744697479,4.57593839,2185.4,2185.0,3.04576131]
[1746744697800,4.57603075,2185.3,2185.2,3.6490063]
[1746744698009,4.57593094,2185.4,2185.2,3.6490063]
[1746744698199,4.57593094,2185.4,2184.7,3.6490063]
[1746744698200,4.57689915,2184.9,2184.7,3.6490063]
[1746744698506,5.4005355,2185.3,2184.7,3.69477594]
[1746744698797,4.5760652,2185.3,2185.0,3.6490063]
[1746744699494,4.57624677,2185.2,2185.0,3.6490063]
[1746744699682,4.57611168,2185.3,2185.0,3.6490063]
[1746744700409,4.57590347,2185.4,2185.0,9.92010857]
[1746744700571,4.57590347,2185.4,2185.0,5.34345337]
[1746744700771,4.57590347,2185.4,2185.2,3.6490063]
[1746744704005,4.57548502,2185.6,2185.2,3.6490063]
[1746744704217,4.57548502,2185.6,2185.4,3.6490063]
[1746744704378,4.57553987,2185.6,2185.4,3.6490063]
[1746744704995,4.57561198,2185.5,2185.4,3.6490063]
[1746744705192,4.57561198,2185.5,2185.1,3.6490063]
[1746744705392,4.57644959,2185.1,2184.9,3.523]
[1746744705689,4.57665903,2185.0,2184.9,7.1720063]
[1746744706013,4.57665903,2185.0,2184.9,3.523]
[1746744706380,4.57644959,2185.1,2184.6,4.4147063]
[1746744706592,4.57728749,2184.7,2184.6,3.6490063]
[1746744707482,4.57714978,2184.8,2184.6,3.6490063]
[1746744708506,4.57606808,2185.3,2184.7,5.06753304]
[1746744708699,4.57588699,2185.4,2185.1,3.6490063]
[1746744711008,4.57592479,2185.4,2185.2,0.7726]
[1746744711216,4.57624016,2185.2,2185.0,0.7726]
[1746744711418,4.57644959,2185.1,2185.0,3.6490063]
[1746744712108,4.57634653,2185.2,2185.0,3.6490063]
[1746744712313,4.57644959,2185.1,2185.0,3.6490063]
[1746744713301,4.57613713,2185.3,2185.0,3.6490063]
[1746744713506,5.12561198,2185.5,2185.0,3.6490063]
[1746744713814,4.57644725,2185.2,2185.0,3.6490063]
[1746744714310,4.57644959,2185.1,2185.0,3.6490063]
[1746744714518,4.57632951,2185.2,2185.0,3.6490063]
[1746744715418,4.57644959,2185.1,2185.0,6.6490063]
[1746744715620,4.5761263,2185.3,2185.0,6.6490063]
[1746744716119,9.15235748,2185.3,2185.0,6.6490063]
[1746744716421,0.55,2185.5,2185.0,6.6490063]
[1746744716422,4.57626245,2185.2,2185.0,6.6490063]
[1746744717631,4.5761024,2185.3,2185.0,6.6490063]
[1746744718587,4.57625566,2185.2,2185.0,6.6490063]
[1746744719524,4.57615563,2185.3,2185.0,6.6490063]
[1746744720109,4.57625798,2185.2,2185.0,6.6490063]
[1746744720944,4.57592948,2185.4,2185.0,8.5555117]
[1746744721221,4.57554566,2185.6,2185.3,3.6490063]
[1746744721407,4.57582135,2185.4,2185.1,0.8205]
[1746744721607,5.38263061,2185.4,2184.9,4.89309123]
[1746744721823,4.57635325,2185.2,2184.9,4.89309123]
[1746744722310,4.57564904,2185.5,2185.1,8.225446]
[1746744722625,4.57543667,2185.6,2185.2,0.8205]
[1746744723045,4.57543667,2185.6,2185.2,5.39670341]
[1746744723228,4.57543667,2185.6,2185.2,6.59216731]
[1746744723431,4.57543667,2185.6,2185.2,6.63792473]
[1746744723731,4.57543667,2185.6,2185.2,2.06172132]
[1746744723935,4.57543667,2185.6,2185.2,9.63793183]
[1746744724336,4.57543667,2185.6,2185.2,5.0159639]
[1746744724625,4.5756634,2185.5,2185.2,5.0159639]
[1746744725722,4.57555611,2185.6,2185.2,5.0159639]
[1746744725925,4.57555611,2185.6,2185.2,9.63794309]
[1746744726328,0.8068,2185.9,2185.3,6.36227547]
[1746744726329,4.57498398,2185.8,2185.3,6.36227547]
[1746744726632,4.57504258,2185.8,2185.7,3.6490063]
[1746744726848,4.57504258,2185.8,2185.4,6.69475987]
[1746744727056,0.10248951,2185.7,2185.4,6.6490063]
[1746744727261,4.57504258,2185.8,2185.4,6.6490063]
[1746744727423,0.1035405,2185.7,2185.4,6.6490063]
[1746744727618,4.57504258,2185.8,2185.4,8.20718503]
[1746744727818,4.57488338,2185.9,2185.4,8.20718503]
[1746744728019,0.08541206,2185.8,2185.4,11.72218503]
[1746744728547,4.66048988,2185.8,2185.4,16.29793904]
[1746744729451,4.66048988,2185.8,2185.4,10.1640063]
[1746744729661,0.7963,2185.7,2185.0,4.89309123]
[1746744729947,4.57593823,2185.4,2185.1,3.0]
[1746744730152,4.57614774,2185.3,2185.0,3.6490063]
[1746744730856,0.7963,2185.7,2185.0,8.2713719]
[1746744731152,4.57635175,2185.2,2185.0,3.6490063]
[1746744731317,4.57617424,2185.3,2185.0,3.6490063]
[1746744732021,4.57636448,2185.2,2185.0,3.6490063]
[1746744732537,4.57608557,2185.3,2185.0,3.6490063]
[1746744733142,4.5762248,2185.3,2185.0,3.6490063]
[1746744733338,9.15245034,2185.3,2185.0,3.6490063]
[1746744733549,1.3501,2185.5,2185.0,3.6490063]
[1746744733748,4.5761995,2185.3,2185.0,3.6490063]
[1746744734242,4.57594465,2185.4,2185.0,3.6490063]
[1746744734443,5.37577949,2185.5,2185.0,4.77161072]
[1746744734648,4.57628501,2185.2,2185.0,3.6490063]
[1746744736124,4.57636324,2185.2,2185.0,3.6490063]
[1746744736458,4.57644959,2185.1,2185.0,3.6490063]
[1746744737258,4.5768685,2184.9,2184.7,3.6490063]
[1746744737463,4.57744093,2184.7,2184.4,3.6490063]
[1746744737623,4.57749702,2184.6,2184.5,3.0]
[1746744737992,4.57854493,2184.1,2183.0,4.86733518]
[1746744738266,5.91171282,2183.4,2183.3,3.94910537]
[1746744738571,12.76968406,2183.4,2183.3,3.94910537]
[1746744739069,14.16880955,2183.4,2183.3,3.94910537]
[1746744739236,14.16880955,2183.4,2182.8,4.86733518]
[1746744739237,0.55,2183.0,2182.8,4.86733518]
[1746744739576,13.83188738,2182.9,2182.8,4.86733518]
[1746744739925,10.31188738,2182.9,2182.8,4.86733518]
[1746744740265,11.55893086,2182.9,2182.8,4.86733518]
[1746744740446,35.07793086,2182.9,2182.8,4.86733518]
[1746744740671,28.04493086,2182.9,2182.8,4.86733518]
[1746744740955,35.07893086,2182.9,2182.8,4.86733518]
[1746744742926,26.64580537,2182.9,2182.8,4.86733518]
[1746744743145,33.67480537,2182.9,2182.8,4.86733518]
[1746744743348,33.67480537,2182.9,2182.8,4.62853518]
[1746744744058,33.67480537,2182.9,2181.6,3.0]
[1746744744059,4.58295828,2182.0,2181.6,3.0]
[1746744744354,4.58295142,2182.0,2181.6,1.66479014]
[1746744744574,4.58338612,2181.8,2181.5,0.831]
[1746744744741,4.58362088,2181.7,2181.5,0.831]
[1746744744928,4.58379171,2181.6,2181.5,0.831]
[1746744745124,4.5844361,2181.3,2181.1,4.3323]
[1746744745371,4.316176,2181.3,2180.3,0.8133]
[1746744745575,4.58533586,2180.9,2180.3,4.4623063]
[1746744745866,4.5854394,2180.9,2180.4,3.0]
[1746744746026,4.5854394,2180.9,2180.4,7.58625548]
[1746744746427,4.58467591,2181.2,2180.8,3.0]
[1746744746651,5.13421197,2181.4,2180.9,0.7918]
[1746744746828,4.58465627,2181.2,2180.9,0.7918]
[1746744747023,4.58450732,2181.3,2180.9,0.7918]
[1746744747230,8.10218597,2181.5,2180.9,9.02590935]
[1746744747424,8.45067139,2181.5,2180.9,7.4408063]
[1746744747677,4.58422034,2181.4,2180.9,8.28036563]
[1746744747843,4.58481844,2181.2,2180.9,4.63135933]
[1746744748068,4.58481844,2181.2,2180.9,3.7918]
[1746744748274,0.7677,2181.1,2179.9,0.7918]
[1746744748430,4.58715596,2180.0,2179.9,0.7918]
[1746744748832,4.58642181,2180.4,2179.9,0.7918]
[1746744749034,4.58652524,2180.3,2179.9,0.7918]
[1746744749262,4.58675637,2180.2,2179.9,0.7918]
[1746744749578,0.55,2180.6,2179.9,0.7918]
[1746744749880,4.58674925,2180.2,2179.9,0.7918]
[1746744750079,0.7677,2180.8,2179.9,0.7918]
[1746744750258,4.58583625,2180.7,2180.1,3.0]
[1746744750458,4.58604197,2180.6,2180.1,7.63268983]
[1746744750785,4.58589498,2180.6,2180.1,0.04586252]
[1746744751279,4.58505272,2181.0,2180.1,4.63268946]
[1746744751280,4.58579701,2180.7,2180.1,4.63268946]
[1746744751479,4.58555289,2180.8,2180.4,3.0]
[1746744751643,0.78,2181.2,2180.5,0.8301]
[1746744751844,4.58434731,2181.4,2180.8,4.5853048]
[1746744752076,4.58502119,2181.1,2180.8,3.0]
[1746744752246,4.58560546,2180.8,2180.5,0.8301]
[1746744752447,0.45850212,2181.1,2180.5,0.8301]
[1746744752646,0.7544,2181.6,2180.6,0.04585483]
[1746744752849,4.58451812,2181.3,2180.8,3.0]
[1746744753074,4.58400183,2181.5,2180.6,7.58577079]
[1746744753237,4.58477654,2181.2,2180.6,9.60156284]
[1746744753440,4.58472434,2181.2,2180.7,4.58564393]
[1746744753773,4.58456543,2181.3,2180.8,4.63116942]
[1746744753977,4.58428101,2181.4,2180.9,5.33863843]
[1746744754149,4.58358161,2181.7,2180.9,5.33863843]
[1746744754345,4.58442865,2181.3,2180.9,0.7534]
[1746744754545,7.11937977,2181.7,2180.9,0.7534]
[1746744754875,4.58452963,2181.3,2180.9,0.7534]
[1746744755279,4.58430554,2181.4,2180.9,5.33864925]
[1746744755445,4.58443189,2181.3,2180.9,5.33864925]
[1746744755641,4.58435029,2181.4,2180.9,6.63107307]
[1746744755836,4.584443,2181.3,2181.0,3.0]
[1746744756174,4.5845276,2181.3,2180.9,2.04582382]
[1746744757436,4.58432349,2181.4,2181.0,3.0]
[1746744757957,4.58432349,2181.4,2181.0,7.63088839]
[1746744758163,4.58432349,2181.4,2181.0,7.63086113]
[1746744758379,4.58432349,2181.4,2181.1,3.0]
[1746744758574,4.58412762,2181.5,2181.1,3.0]
[1746744758736,4.58297516,2182.0,2181.3,0.7654]
[1746744758939,4.58350388,2181.8,2181.3,3.7654]
[1746744759133,0.8305,2182.5,2181.8,0.7654]
[1746744759335,4.58292754,2182.1,2181.8,0.7654]
[1746744759666,4.58201841,2182.5,2182.0,4.58293372]
[1746744759864,4.58190226,2182.5,2182.0,7.58278478]
[1746744760180,4.58157618,2182.7,2182.1,4.58257369]
[1746744760485,4.58148165,2182.7,2182.0,7.58284334]
[1746744760776,4.58177315,2182.6,2182.2,4.58250363]
[1746744760959,4.58190741,2182.5,2182.0,7.58282361]
[1746744761165,4.58190741,2182.5,2182.0,9.22802635]
[1746744761483,4.58190741,2182.5,2182.0,9.22794763]
[1746744761678,4.58190741,2182.5,2182.1,4.5826934]
[1746744762090,24.12896673,2183.7,2182.4,3.0]
[1746744762289,4.58181472,2182.6,2182.2,8.33272676]
[1746744762438,4.58160739,2182.7,2182.2,9.03051831]
[1746744762775,4.58171695,2182.6,2182.2,1.44799155]
[1746744762959,0.55,2182.9,2182.2,0.7502]
[1746744763168,4.5823052,2182.4,2182.2,0.7502]
[1746744763334,4.5823214,2182.3,2182.2,0.7502]
[1746744763774,4.58222725,2182.4,2182.2,0.7502]
[1746744763979,4.5823214,2182.3,2182.2,0.7502]
[1746744764177,4.58223515,2182.4,2182.2,0.7502]
[1746744764391,4.5823214,2182.3,2182.2,0.7502]
[1746744764592,0.8063,2182.5,2182.0,3.0]
[1746744764763,4.58264484,2182.2,2181.7,5.36658976]
[1746744764963,4.58246821,2182.3,2181.8,3.0]
[1746744765174,4.58190148,2182.5,2181.8,3.04582803]
[1746744765379,4.58284196,2182.1,2181.8,3.0]
[1746744765583,4.58265063,2182.2,2181.8,3.0]
[1746744765909,4.58256783,2182.2,2181.8,3.04582804]
[1746744766201,4.58278596,2182.1,2181.8,3.0]
[1746744766960,4.58262939,2182.2,2181.8,7.58326353]
[1746744767161,5.13190824,2182.5,2181.8,3.0]
[1746744767362,4.58284378,2182.1,2181.8,3.0]
[1746744767776,0.8216,2182.8,2181.9,0.778]
[1746744767985,4.58169156,2182.6,2182.0,0.04582257]
[1746744768188,4.58269168,2182.2,2181.7,4.58348007]
[1746744768389,0.55,2182.5,2181.6,5.67109123]
[1746744768590,4.58268339,2182.2,2181.6,10.25477052]
[1746744768758,4.58288922,2182.1,2181.7,3.0]
[1746744768958,4.5823214,2182.3,2181.8,4.62918608]
[1746744769163,4.58264306,2182.2,2181.8,4.62918608]
[1746744769363,0.55,2182.5,2181.9,4.58310529]
[1746744769590,4.58212052,2182.4,2181.9,4.58316146]
[1746744769779,4.58203084,2182.5,2182.0,3.0]
[1746744769985,4.58203084,2182.5,2182.1,0.7555]
[1746744770191,4.58191448,2182.5,2182.1,8.33819767]
[1746744770499,0.34175003,2183.0,2182.1,8.33819767]
[1746744770671,4.58201156,2182.5,2182.1,0.7555]